bitfinex/quotes_SOLUSD_20250209
["timestamp","ask_amount","ask_price","bid_price","bid_amount"]
[1739115947549,13.41184853,200.86,200.83,0.063]
[1739115947743,22.33151586,200.86,200.83,0.063]
[1739115948251,13.41184853,200.84,200.83,0.063]
[1739115948549,8.91966733,200.84,200.83,0.063]
[1739115951452,13.41184853,200.84,200.83,0.063]
[1739115951955,8.91966733,200.87,200.83,0.063]
[1739115952134,8.91966733,200.88,200.83,0.063]
[1739115952739,13.41184853,200.87,200.83,0.063]
[1739115953160,22.33151586,200.87,200.83,0.063]
[1739115953352,22.33151586,200.85,200.83,0.063]
[1739115953534,22.33151586,200.84,200.83,0.063]
[1739115955855,13.41184853,200.84,200.83,0.063]
[1739115959179,8.91966733,200.88,200.83,0.063]
[1739115959346,8.91966733,200.88,200.83,3.5485]
[1739115960152,13.41184853,200.87,200.83,3.5485]
[1739115960346,13.41184853,200.87,200.83,0.063]
[1739115961074,22.33151586,200.87,200.83,0.063]
[1739115961471,13.41184853,200.87,200.83,0.063]
[1739115962763,8.94966733,200.9,200.84,8.91966733]
[1739115962981,0.03,200.9,200.84,8.91966733]
[1739115963283,8.91966733,200.88,200.83,0.063]
[1739115963651,8.91966733,200.87,200.83,0.063]
[1739115963975,8.91966733,200.86,200.83,0.063]
[1739115964489,13.41184853,200.86,200.83,0.063]
[1739115965153,22.33151586,200.86,200.83,0.063]
[1739115969167,3.4847,200.88,200.83,0.063]
[1739115969168,20.0,200.85,200.83,0.063]
[1739115970273,8.94966733,200.9,200.83,8.98266733]
[1739115970751,8.91966733,200.89,200.83,0.063]
[1739115971685,8.91966733,200.86,200.83,0.063]
[1739115971856,8.91966733,200.85,200.83,0.063]
[1739115972054,8.91966733,200.87,200.83,0.063]
[1739115973279,8.91966733,200.89,200.83,0.063]
[1739115973893,13.41184853,200.88,200.83,0.063]
[1739115975690,22.33151586,200.88,200.83,0.063]
[1739115975879,13.41184853,200.87,200.83,0.063]
[1739115976195,22.33151586,200.89,200.83,0.063]
[1739115976863,13.41184853,200.89,200.83,8.98266733]
[1739115977587,22.33151586,200.89,200.84,3.4853]
[1739115978178,80.7,200.88,200.84,3.4853]
[1739115979096,22.33151586,200.87,200.83,0.063]
[1739115979394,8.91966733,200.85,200.83,0.063]
[1739115981090,8.91966733,200.86,200.83,0.063]
[1739115981301,13.41184853,200.85,200.83,0.063]
[1739115983102,94.11184853,200.84,200.83,0.063]
[1739115983776,80.7,200.84,200.83,0.063]
[1739115986681,80.7,200.84,200.83,8.98266733]
[1739115987002,80.7,200.84,200.83,12.46816733]
[1739115987198,80.7,200.84,200.83,20.08676733]
[1739115987579,80.7,200.89,200.83,28.80056733]
[1739115987777,80.7,200.89,200.88,8.91966733]
[1739115988827,0.03,200.9,200.88,12.40426733]
[1739115989031,0.03,200.9,200.89,8.91966733]
[1739115989725,0.03,200.9,200.88,3.4846]
[1739115989926,0.03,200.9,200.89,8.91966733]
[1739115994024,0.03,200.9,200.89,12.40406733]
[1739115994517,0.03,200.9,200.89,8.91966733]
[1739115994725,0.03,200.9,200.88,12.40426733]
[1739115994918,0.03,200.9,200.87,12.40436733]
[1739115995724,0.03,200.9,200.83,7.6816]
[1739115995725,80.7,200.89,200.85,12.40466733]
[1739115996217,80.7,200.89,200.86,8.91966733]
[1739115997209,80.7,200.89,200.87,8.91966733]
[1739115997416,80.7,200.89,200.85,3.485]
[1739115997813,80.7,200.88,200.83,16.60126733]
[1739115998017,80.7,200.87,200.83,16.60126733]
[1739115998323,80.7,200.87,200.84,8.91966733]
[1739115999013,80.7,200.86,200.84,8.91966733]
[1739115999221,80.7,200.86,200.85,8.91966733]
[1739116002535,80.7,200.86,200.85,12.40476733]
[1739116004817,0.03,200.9,200.85,12.40476733]
[1739116005035,0.03,200.9,200.89,8.91966733]
[1739116005735,80.7,200.92,200.89,21.32373466]
[1739116005919,80.7,201.0,200.91,17.11606733]
[1739116006117,80.7,201.0,200.98,8.91966733]
[1739116006727,80.7,201.0,200.97,8.91966733]
[1739116006915,0.03,201.01,200.95,8.91966733]
[1739116006916,80.7,200.99,200.95,8.91966733]
[1739116007935,80.7,200.99,200.95,12.40296733]
[1739116008449,80.7,200.99,200.95,3.4833]
[1739116008741,80.7,200.99,200.94,8.91966733]
[1739116010247,13.41184853,200.98,200.94,8.91966733]
[1739116010618,13.41184853,200.98,200.93,8.91966733]
[1739116010820,13.41184853,200.96,200.92,8.91966733]
[1739116011031,13.41184853,200.96,200.91,8.91966733]
[1739116011425,13.41184853,200.96,200.9,8.98266733]
[1739116011624,8.91966733,200.94,200.9,0.063]
[1739116011921,8.91966733,200.93,200.9,0.063]
[1739116012122,80.7,200.92,200.9,0.063]
[1739116013555,80.7,200.91,200.9,0.063]
[1739116013927,22.33151586,200.91,200.9,0.063]
[1739116014636,25.81561586,200.91,200.9,0.063]
[1739116015342,33.59221586,200.91,200.9,0.063]
[1739116019338,13.41184853,200.87,200.83,0.063]
[1739116019521,80.7,200.86,200.83,0.063]
[1739116020124,80.7,200.86,200.83,8.98266733]
[1739116020735,80.7,200.86,200.85,8.91966733]
[1739116021745,80.7,200.91,200.85,8.91966733]
[1739116022053,80.7,200.91,200.9,8.91966733]
[1739116022533,80.7,200.97,200.9,8.91966733]
[1739116022733,80.7,200.96,200.93,8.91966733]
[1739116022949,80.7,200.96,200.94,8.91966733]
[1739116023157,80.7,200.96,200.95,8.91966733]
[1739116023457,0.03,200.99,200.95,8.91966733]
[1739116023632,0.03,200.99,200.96,8.91966733]
[1739116024653,0.03,200.99,200.95,12.40306733]
[1739116024862,0.03,200.99,200.94,8.91966733]
[1739116026248,0.03,200.99,200.96,8.91966733]
[1739116026441,0.03,200.99,200.95,8.91966733]
[1739116026631,0.03,200.99,200.94,12.40316733]
[1739116027460,0.03,200.99,200.96,8.91966733]
[1739116028338,0.03,200.99,200.95,8.91966733]
[1739116028546,0.03,200.99,200.94,8.91966733]
[1739116028860,8.94966733,200.99,200.92,8.91966733]
[1739116029159,8.91966733,200.98,200.91,12.40376733]
[1739116029338,8.94966733,200.99,200.92,8.91966733]
[1739116030266,12.43236733,200.99,200.92,8.91966733]
[1739116031137,8.91966733,200.98,200.91,12.40376733]
[1739116031337,20.0,200.98,200.94,8.91966733]
[1739116032346,20.0,200.98,200.93,8.91966733]
[1739116032545,94.11184853,200.97,200.91,8.91966733]
[1739116032745,89.61966733,200.96,200.9,0.063]
[1739116032965,80.7,200.95,200.9,0.063]
[1739116033159,8.91966733,200.94,200.9,0.063]
[1739116033547,8.91966733,200.93,200.9,0.063]
[1739116033864,89.61966733,200.92,200.9,0.063]
[1739116034066,80.7,200.91,200.9,0.063]
[1739116034269,8.91966733,200.92,200.9,0.063]
[1739116034839,42.33151586,200.91,200.9,0.063]
[1739116036339,45.81561586,200.91,200.9,0.063]
[1739116037847,42.33151586,200.91,200.9,0.063]
[1739116038748,33.41184853,200.91,200.9,0.063]
[1739116040575,42.33151586,200.91,200.9,0.063]
[1739116040948,45.81561586,200.91,200.9,0.063]
[1739116042767,42.33151586,200.91,200.9,0.063]
[1739116044070,33.41184853,200.91,200.9,0.063]
[1739116044680,42.33151586,200.91,200.9,0.063]
[1739116044886,45.81561586,200.91,200.9,0.063]
[1739116046369,13.41184853,200.88,200.83,0.063]
[1739116046557,13.41184853,200.86,200.83,0.063]
[1739116047885,80.7,200.87,200.83,0.063]
[1739116048091,80.7,200.87,200.83,8.98266733]
[1739116048985,80.7,200.87,200.83,0.063]
[1739116049188,13.41184853,200.86,200.83,0.063]
[1739116050478,80.7,200.87,200.83,8.98266733]
[1739116050994,80.7,200.87,200.83,0.063]
[1739116051171,13.41184853,200.86,200.83,0.063]
[1739116052192,80.7,200.85,200.83,0.063]
[1739116055370,80.7,200.84,200.83,0.063]
[1739116056986,94.11184853,200.84,200.83,0.063]
[1739116057169,99.82532535,200.84,200.83,0.063]
[1739116057367,94.11184853,200.84,200.83,0.063]
[1739116060480,13.41184853,200.84,200.83,0.063]
[1739116060672,19.12532535,200.84,200.83,0.063]
[1739116064185,5.71347682,200.86,200.83,0.063]
[1739116064376,5.71347682,200.87,200.83,0.063]
[1739116064690,20.0,200.84,200.83,0.063]
[1739116067871,39.12532535,200.84,200.83,0.063]
[1739116071195,42.61062535,200.84,200.83,0.063]
[1739116071487,39.12532535,200.84,200.83,0.063]
[1739116073197,39.12532535,200.84,200.8,0.063]
[1739116073198,20.0,200.8,200.71,0.063]
[1739116073372,13.41184853,200.73,200.71,0.063]
[1739116073691,19.12532535,200.72,200.71,0.063]
[1739116074185,234.42532535,200.72,200.7,0.03]
[1739116074380,5.71347682,200.71,200.7,0.03]
[1739116075281,221.01347682,200.72,200.7,0.03]
[1739116075701,224.24090969,200.72,200.7,0.03]
[1739116075879,8.94090969,200.71,200.7,0.03]
[1739116077527,215.3,200.72,200.7,0.03]
[1739116078003,80.7,200.72,200.71,8.94090969]
[1739116079215,80.7,200.72,200.7,0.03]
[1739116082111,80.7,200.71,200.7,0.03]
[1739116082319,89.64090969,200.71,200.7,0.03]
[1739116082496,22.35275822,200.71,200.7,0.03]
[1739116083693,25.84035822,200.71,200.7,0.03]
[1739116085423,25.87035822,200.71,200.7,0.03]
[1739116085608,22.38275822,200.71,200.7,0.03]
[1739116085801,25.87035822,200.71,200.7,0.03]
[1739116087721,134.507,200.69,200.66,0.063]
[1739116087896,80.7,200.68,200.66,0.063]
[1739116088105,13.41184853,200.67,200.66,0.063]
[1739116089626,22.35275822,200.67,200.66,0.063]
[1739116089826,25.84105822,200.67,200.66,0.063]
[1739116092004,27.06375862,200.67,200.66,0.063]
[1739116092416,22.35275822,200.67,200.66,0.063]
[1739116092798,25.84105822,200.67,200.66,0.063]
[1739116093003,94.04884853,200.65,200.64,0.063]
[1739116093230,106.47835822,200.65,200.64,0.063]
[1739116093406,20.0,200.63,200.62,0.063]
[1739116093729,42.35275822,200.63,200.62,0.063]
[1739116095541,33.41184853,200.63,200.62,0.063]
[1739116097319,42.35275822,200.63,200.62,0.063]
[1739116098921,33.41184853,200.63,200.62,0.063]
[1739116100057,8.94090969,200.65,200.62,0.063]
[1739116100253,20.0,200.63,200.62,0.063]
[1739116103035,13.41184853,200.68,200.62,9.00390969]
[1739116103438,8.94090969,200.68,200.62,0.063]
[1739116103950,22.35275822,200.66,200.62,0.063]
[1739116104144,8.94090969,200.65,200.62,0.063]
[1739116104345,42.35275822,200.66,200.62,0.063]
[1739116105154,33.41184853,200.66,200.62,0.063]
[1739116107583,42.35275822,200.66,200.62,0.063]
[1739116107732,33.41184853,200.63,200.62,0.063]
[1739116108054,42.35275822,200.63,200.62,0.063]
[1739116110357,33.41184853,200.63,200.62,0.063]
[1739116111234,20.0,200.63,200.62,0.063]
[1739116111630,33.41184853,200.63,200.62,0.063]
[1739116113353,42.35275822,200.63,200.62,0.063]
[1739116117743,33.41184853,200.63,200.62,0.063]
[1739116120264,0.03,200.64,200.62,0.063]
[1739116120463,0.03,200.64,200.62,9.00390969]
[1739116121144,13.44184853,200.64,200.62,0.063]
[1739116126573,80.7,200.63,200.62,0.063]
[1739116126867,94.11184853,200.63,200.62,0.063]
[1739116130269,80.7,200.63,200.62,0.063]
[1739116132083,80.7,200.63,200.62,9.00390969]
[1739116132661,0.03,200.64,200.63,3.489]
[1739116132997,0.03,200.64,200.62,0.063]
[1739116134188,13.44184853,200.64,200.62,0.063]
[1739116136876,0.03,200.64,200.62,0.063]
[1739116139462,13.44184853,200.64,200.62,0.063]
[1739116141675,0.03,200.64,200.62,5.78901638]
[1739116141991,0.03,200.64,200.62,0.063]
[1739116143163,0.03,200.64,200.62,3.5521]
[1739116143700,13.44184853,200.64,200.62,0.063]
[1739116145989,5.72601638,200.63,200.62,0.063]
[1739116148089,22.62686491,200.63,200.62,0.063]
[1739116149683,19.13786491,200.63,200.62,0.063]
[1739116150098,13.41184853,200.63,200.62,0.063]
[1739116150996,19.13786491,200.63,200.62,0.063]
[1739116151167,20.36211712,200.63,200.62,0.063]
[1739116151362,14.63610074,200.63,200.62,0.063]
[1739116151583,20.36211712,200.63,200.62,0.063]
[1739116151794,14.63610074,200.63,200.62,0.063]
[1739116151996,13.41184853,200.63,200.62,0.063]
[1739116154091,22.62686491,200.63,200.62,0.063]
[1739116158194,16.90084853,200.63,200.62,0.063]
[1739116158696,13.41184853,200.63,200.62,0.063]
[1739116160175,0.03,200.64,200.62,0.063]
[1739116160375,20.0,200.63,200.62,0.063]
[1739116160795,0.03,200.64,200.62,0.063]
[1739116160980,0.03,200.64,200.62,5.78901638]
[1739116162101,0.03,200.64,200.62,9.27801638]
[1739116162301,0.03,200.64,200.63,5.72601638]
[1739116162688,0.03,200.64,200.62,3.552]
[1739116164178,0.03,200.64,200.62,0.063]
[1739116168210,80.7,200.63,200.62,0.063]
[1739116169698,94.11184853,200.63,200.62,0.063]
[1739116169894,19.13786491,200.63,200.62,0.063]
[1739116170099,22.62686491,200.63,200.62,0.063]
[1739116171405,20.0,200.59,200.54,8.1368]
[1739116171605,33.41184853,200.58,200.54,8.1368]
[1739116173306,5.72601638,200.56,200.5,15.71061638]
[1739116173507,13.41184853,200.54,200.5,6.4934]
[1739116173806,13.41184853,200.54,200.49,0.063]
[1739116174209,80.7,200.53,200.49,0.063]
[1739116174590,94.11184853,200.52,200.49,0.063]
[1739116175099,80.7,200.52,200.5,5.72601638]
[1739116176509,80.7,200.52,200.51,5.72601638]
[1739116176693,80.7,200.52,200.5,9.21711638]
[1739116179095,80.7,200.52,200.49,0.063]
[1739116179290,80.7,200.52,200.49,3.5544]
[1739116179915,80.7,200.52,200.49,9.28041638]
[1739116180133,80.7,200.51,200.5,0.063]
[1739116184107,80.7,200.56,200.5,5.78901638]
[1739116184423,80.7,200.56,200.53,5.72601638]
[1739116184905,80.7,200.56,200.54,5.72601638]
[1739116185111,80.7,200.56,200.55,5.72601638]
[1739116185705,80.7,200.56,200.53,9.21661638]
[1739116186007,80.7,200.56,200.52,9.21691638]
[1739116187814,80.7,200.56,200.53,5.72601638]
[1739116188115,80.7,200.56,200.52,3.4909]
[1739116188116,80.7,200.56,200.54,5.72601638]
[1739116189010,80.7,200.55,200.54,5.72601638]
[1739116189796,80.7,200.55,200.54,9.21651638]
[1739116192418,80.7,200.55,200.54,5.72601638]
[1739116192716,80.7,200.55,200.53,3.4907]
[1739116192914,80.7,200.54,200.52,0.063]
[1739116194419,80.7,200.53,200.52,0.063]
[1739116194796,13.41184853,200.53,200.52,0.063]
[1739116194997,19.13786491,200.53,200.52,0.063]
[1739116195398,22.62856491,200.53,200.52,0.063]
[1739116195802,19.13786491,200.53,200.52,0.063]
[1739116197627,22.62856491,200.53,200.52,0.063]
[1739116197920,33.41184853,200.51,200.5,0.063]
[1739116198815,39.13786491,200.51,200.5,0.063]
[1739116200411,42.62886491,200.51,200.5,0.063]
[1739116201224,40.39796894,200.51,200.5,0.063]
[1739116203114,43.88896894,200.51,200.5,0.063]
[1739116204926,20.0,200.47,200.42,3.4925]
[1739116205307,20.0,200.47,200.42,5.72601638]
[1739116207126,19.13786491,200.5,200.43,9.21841638]
[1739116207424,5.72601638,200.54,200.47,5.72601638]
[1739116207608,1.26521723,200.55,200.48,5.72601638]
[1739116207805,80.7,200.53,200.48,5.72601638]
[1739116208126,80.7,200.53,200.49,5.72601638]
[1739116208315,80.7,200.57,200.52,5.72601638]
[1739116208628,80.7,200.56,200.5,22.90406552]
[1739116209706,80.7,200.56,200.51,12.2187]
[1739116210028,80.7,200.56,200.55,5.72601638]
[1739116211629,80.7,200.56,200.55,9.21641638]
[1739116212722,80.7,200.56,200.55,15.44011638]
[1739116212937,80.7,200.56,200.55,16.95401638]
[1739116213840,80.7,200.56,200.55,20.17227019]
[1739116215412,79.7,200.56,200.55,20.17227019]
[1739116215813,79.7,200.61,200.55,28.89827019]
[1739116216044,79.7,200.61,200.6,8.94427019]
[1739116216244,0.03,200.62,200.59,8.94427019]
[1739116216546,0.03,200.62,200.6,8.94427019]
[1739116217414,0.03,200.62,200.61,8.94427019]
[1739116217944,0.03,200.62,200.61,12.43357019]
[1739116227539,80.73,200.62,200.6,8.94427019]
[1739116227758,80.73,200.62,200.59,3.4895]
[1739116228634,80.73,200.62,200.61,8.94427019]
[1739116229625,0.03,200.62,200.59,8.94427019]
[1739116229950,0.03,200.62,200.58,8.94427019]
[1739116230359,0.03,200.62,200.59,8.94427019]
[1739116230537,0.03,200.62,200.6,8.94427019]
[1739116231251,0.03,200.62,200.56,0.03]
[1739116231252,0.03,200.62,200.61,8.94427019]
[1739116233860,0.03,200.62,200.61,12.43357019]
[1739116235726,0.03,200.62,200.61,9.21203045]
[1739116245769,0.03,200.62,200.61,5.72273045]
[1739116245949,0.03,200.62,200.58,5.72273045]
[1739116246270,0.03,200.62,200.57,9.21273045]
[1739116246458,0.03,200.62,200.57,5.72273045]
[1739116246756,80.7,200.61,200.56,33.2457]
[1739116246942,0.03,200.62,200.6,5.72273045]
[1739116247149,0.03,200.62,200.61,5.72273045]
[1739116248758,0.03,200.62,200.61,9.21203045]
[1739116248941,0.03,200.62,200.6,5.72273045]
[1739116249143,0.03,200.62,200.59,5.72273045]
[1739116249865,0.03,200.62,200.58,5.72273045]
[1739116250458,0.03,200.62,200.57,5.72273045]
[1739116250642,13.44184853,200.62,200.56,5.75273045]
[1739116250941,80.7,200.61,200.56,5.75273045]
[1739116251138,80.7,200.61,200.57,5.72273045]
[1739116254464,80.7,200.6,200.57,5.72273045]
[1739116255447,80.7,200.59,200.56,0.03]
[1739116257684,80.7,200.59,200.56,5.75273045]
[1739116258471,80.7,200.59,200.56,3.5201]
[1739116258647,80.7,200.59,200.56,0.03]
[1739116260274,80.7,200.58,200.57,5.72273045]
[1739116262273,80.7,200.58,200.56,5.75273045]
[1739116262482,80.7,200.58,200.57,5.72273045]
[1739116264255,80.7,200.58,200.57,9.21273045]
[1739116264468,80.7,200.61,200.57,9.21273045]
[1739116264776,80.7,200.61,200.6,28.61365225]
[1739116265083,0.03,200.62,200.6,28.61365225]
[1739116265257,0.03,200.62,200.61,5.72273045]
[1739116266063,0.03,200.62,200.61,9.21203045]
[1739116272187,0.03,200.64,200.61,9.21203045]
[1739116272188,0.03,200.64,200.61,10.21203045]
[1739116272370,0.03,200.64,200.63,5.72273045]
[1739116273084,0.03,200.71,200.64,1.0]
[1739116273285,0.03,200.71,200.7,5.72273045]
[1739116273502,0.03,200.71,200.7,28.61365225]
[1739116274785,0.063,200.73,200.7,30.36081899]
[1739116274987,0.063,200.73,200.72,5.72273045]
[1739116275171,0.063,200.73,200.72,9.21013045]
[1739116275486,0.063,200.77,200.72,26.05922522]
[1739116275680,0.063,200.79,200.76,28.61365225]
[1739116275992,0.063,200.79,200.78,28.61365225]
[1739116276282,0.063,200.79,200.78,5.72273045]
[1739116276886,0.063,200.83,200.79,28.61365225]
[1739116277183,0.063,200.83,200.79,32.09985225]
[1739116277388,0.063,200.83,200.82,5.72273045]
[1739116277703,0.063,200.83,200.82,8.92401113]
[1739116278967,0.063,200.83,200.79,8.92401113]
[1739116279163,0.063,200.83,200.78,8.92401113]
[1739116280193,0.063,200.83,200.8,8.92401113]
[1739116280567,0.063,200.83,200.82,8.92401113]
[1739116282275,0.063,200.83,200.82,12.40971113]
[1739116286286,0.063,200.83,200.82,8.92401113]
[1739116287374,0.063,200.83,200.82,12.40971113]
[1739116289572,0.03,200.85,200.84,20.0]
[1739116289895,0.03,200.85,200.84,28.92401113]
[1739116290279,0.03,200.85,200.84,32.40931113]
[1739116290875,0.03,200.85,200.84,8.92401113]
[1739116292490,0.03,200.85,200.81,8.92401113]
[1739116292712,0.03,200.85,200.8,8.92401113]
[1739116292992,8.92401113,200.84,200.78,12.41041113]
[1739116293380,8.92401113,200.84,200.78,8.92401113]
[1739116293584,1.691,200.85,200.78,8.82401113]
[1739116293786,10.61501113,200.85,200.78,8.82401113]
[1739116294391,14.10021113,200.85,200.78,8.82401113]
[1739116295829,8.92401113,200.81,200.74,8.92401113]
[1739116295978,8.92401113,200.8,200.74,8.92401113]
[1739116296292,8.92401113,200.8,200.71,3.4876]
[1739116296293,8.92401113,200.8,200.73,8.92401113]
[1739116296475,80.7,200.79,200.75,8.92401113]
[1739116297297,80.7,200.79,200.75,8.95401113]
[1739116298796,80.7,200.79,200.75,0.03]
[1739116298995,80.7,200.79,200.75,8.95401113]
[1739116299399,80.7,200.79,200.76,8.92401113]
[1739116299703,80.7,200.79,200.75,12.44081113]
[1739116300609,80.7,200.79,200.76,8.92401113]
[1739116300784,80.7,200.79,200.78,8.92401113]
[1739116301385,80.7,200.79,200.76,8.92401113]
[1739116301803,80.7,200.79,200.75,8.95401113]
[1739116303603,80.7,200.79,200.76,8.92401113]
[1739116304099,80.7,200.79,200.75,8.95401113]
[1739116304408,80.7,200.79,200.75,0.03]
[1739116304579,93.11031113,200.79,200.75,0.03]
[1739116304780,89.62401113,200.78,200.75,0.03]
[1739116305094,8.92401113,200.77,200.75,0.03]
[1739116305690,12.41061113,200.77,200.75,0.03]
[1739116306898,89.62401113,200.78,200.75,0.03]
[1739116307686,8.92401113,200.77,200.75,0.03]
[1739116307890,80.7,200.76,200.75,0.03]
[1739116310694,80.7,200.76,200.75,8.95401113]
[1739116310893,80.7,200.76,200.75,0.03]
[1739116311481,80.7,200.76,200.75,8.95401113]
[1739116312999,80.7,200.76,200.75,0.03]
[1739116320918,22.33585966,200.76,200.75,0.03]
[1739116321211,25.82255966,200.76,200.75,0.03]
[1739116323592,27.05935241,200.76,200.75,0.03]
[1739116332212,20.0,200.72,200.61,8.92401113]
[1739116332413,8.92401113,200.66,200.6,9.5288]
[1739116332729,80.7,200.65,200.6,9.5288]
[1739116333415,80.7,200.65,200.6,18.45281113]
[1739116333994,80.7,200.64,200.6,6.0394]
[1739116334194,80.7,200.64,200.59,8.92401113]
[1739116334195,80.7,200.64,200.58,13.95921113]
[1739116335404,89.62401113,200.64,200.58,5.0352]
[1739116335597,80.7,200.64,200.58,12.44371113]
[1739116335798,80.7,200.63,200.59,8.92401113]
[1739116336391,80.7,200.63,200.6,8.92401113]
[1739116336595,80.7,200.63,200.62,8.92401113]
[1739116338416,80.7,200.63,200.58,8.7546]
[1739116338417,80.7,200.63,200.61,8.92401113]
[1739116339890,80.7,200.63,200.62,8.92401113]
[1739116341918,80.7,200.63,200.62,12.41311113]
[1739116342413,80.7,200.68,200.63,6.3421]
[1739116342620,80.7,200.68,200.67,8.92401113]
[1739116342814,80.7,200.77,200.67,8.92401113]
[1739116343014,0.063,200.78,200.75,8.92401113]
[1739116343318,0.063,200.78,200.76,8.92401113]
[1739116343515,0.063,200.78,200.74,8.92401113]
[1739116343707,0.063,200.78,200.72,5.71842453]
[1739116344214,13.47484853,200.78,200.73,5.71842453]
[1739116344626,0.063,200.78,200.73,5.71842453]
[1739116345699,22.41048003,200.78,200.71,12.4231315]
[1739116346097,13.47484853,200.78,200.72,8.9356315]
[1739116346501,80.7,200.77,200.72,8.9356315]
[1739116346809,80.7,200.77,200.73,8.9356315]
[1739116347009,80.7,200.77,200.72,8.9356315]
[1739116348621,80.7,200.77,200.72,12.4230315]
[1739116348820,80.7,200.77,200.74,8.9356315]
[1739116349119,80.7,200.77,200.75,8.9356315]
[1739116350108,80.7,200.77,200.74,8.9356315]
[1739116350721,80.7,200.77,200.73,8.9356315]
[1739116351024,80.7,200.77,200.72,8.9356315]
[1739116352327,80.7,200.76,200.72,8.9356315]
[1739116352632,80.7,200.76,200.73,8.9356315]
[1739116352805,80.7,200.76,200.75,8.9356315]
[1739116354408,80.7,200.76,200.75,12.4225315]
[1739116356130,0.063,200.78,200.75,12.4225315]
[1739116356325,0.063,200.78,200.77,8.9356315]
[1739116356521,0.063,200.78,200.77,12.4221315]
[1739116357121,0.063,200.78,200.77,8.9356315]
[1739116357327,0.063,200.78,200.76,8.9356315]
[1739116359135,80.763,200.78,200.75,0.03]
[1739116360215,89.6986315,200.78,200.75,0.03]
[1739116360739,80.763,200.78,200.75,0.03]
[1739116361631,80.763,200.78,200.75,8.9656315]
[1739116362843,80.763,200.78,200.75,0.03]
[1739116365338,80.763,200.78,200.77,8.9356315]
[1739116366742,80.763,200.78,200.77,12.4221315]
[1739116370174,0.063,200.78,200.77,12.4221315]
[1739116370452,0.063,200.78,200.77,21.357763]
[1739116370835,0.063,200.78,200.77,12.4221315]
[1739116379847,0.063,200.78,200.77,3.4865]
[1739116380355,0.063,200.78,200.77,12.4221315]
[1739116381147,0.063,200.78,200.77,8.9356315]
[1739116381973,0.063,200.78,200.75,0.03]
[1739116382275,8.9986315,200.78,200.75,0.03]
[1739116382642,80.7,200.77,200.75,0.03]
[1739116382947,103.04748003,200.76,200.75,0.03]
[1739116383149,104.62168003,200.76,200.75,0.03]
[1739116384080,27.40838003,200.76,200.75,0.03]
[1739116384881,13.41184853,200.72,200.64,8.9356315]
[1739116385040,89.6356315,200.71,200.63,8.9356315]
[1739116385244,8.9356315,200.68,200.62,3.5191]
[1739116385662,8.9356315,200.69,200.62,12.4547315]
[1739116385969,8.9356315,200.67,200.62,0.03]
[1739116386269,80.7,200.66,200.62,0.03]
[1739116386766,80.7,200.66,200.62,8.9656315]
[1739116386978,80.7,200.66,200.64,8.9356315]
[1739116388170,80.7,200.66,200.63,12.4245315]
[1739116388373,80.7,200.66,200.63,3.4889]
[1739116389683,80.7,200.66,200.65,8.9356315]
[1739116390185,80.7,200.75,200.65,8.9356315]
[1739116390467,80.7,200.74,200.68,8.9356315]
[1739116390659,13.41184853,200.73,200.68,8.9356315]
[1739116391060,13.41184853,200.73,200.67,8.9356315]
[1739116391751,13.41184853,200.73,200.67,12.4239315]
[1739116392573,13.41184853,200.73,200.67,8.9356315]
[1739116393354,13.41184853,200.73,200.68,8.9356315]